[Event "Sunway Sitges Chess Festival"]
[Date "2024.12.22"]
[White "Moussard, Jules"]
[Black "Gholami Orimi, Mahdi"]
[WhiteElo "2649"]
[BlackElo "2402"]
[Round "13.1"]
[Result "0-1"]
[TimeControl "40/5400+30:1800+30"]

1. e4 {[%clk 0:05:59]} 1... e5 {[%clk 0:05:00]} 2. Nf3 {[%clk 0:05:58]} 2... Nc6
{[%clk 0:04:59]} 3. Bc4 {[%clk 0:05:57]} 3... Nf6 {[%clk 0:04:58]} 4. d3 {[%clk
0:05:57]} 4... Bc5 {[%clk 0:04:56]} 5. O-O {[%clk 0:05:53]} 5... d6 {[%clk
0:04:55]} 6. c3 {[%clk 0:05:43]} 6... a5 {[%clk 0:04:54]} 7. Nbd2 {[%clk
0:05:38]} 7... O-O {[%clk 0:04:52]} 8. h3 {[%clk 0:05:37]} 8... Be6 {[%clk
0:04:42]} 9. Bb5 {[%clk 0:05:35]} 9... Ba7 {[%clk 0:04:41]} 10. Re1 {[%clk
0:05:30]} 10... Ne7 {[%clk 0:04:40]} 11. d4 {[%clk 0:05:28]} 11... c6 {[%clk
0:04:38]} 12. Bd3 {[%clk 0:05:22]} 12... Ng6 {[%clk 0:04:37]} 13. Nf1 {[%clk
0:05:18]} 13... exd4 {[%clk 0:04:30]} 14. Nxd4 {[%clk 0:05:04]} 14... Re8 {[%clk
0:04:21]} 15. Ng3 {[%clk 0:05:00]} 15... Bd7 {[%clk 0:04:11]} 16. Ndf5 {[%clk
0:04:33]} 16... Bxf5 {[%clk 0:04:08]} 17. Nxf5 {[%clk 0:04:25]} 17... d5 {[%clk
0:04:07]} 18. exd5 {[%clk 0:04:04]} 18... Rxe1+ {[%clk 0:03:52]} 19. Qxe1 {[%clk
0:04:03]} 19... Qxd5 {[%clk 0:03:51]} 20. Bc2 {[%clk 0:03:52]} 20... Re8 {[%clk
0:03:48]} 21. Qf1 {[%clk 0:03:50]} 21... Ne4 {[%clk 0:03:37]} 22. Be3 {[%clk
0:03:38]} 22... Bb8 {[%clk 0:03:22]} 23. Nd4 {[%clk 0:03:30]} 23... Qd6 {[%clk
0:02:42]} 24. f4 {[%clk 0:03:07]} 24... Nxf4 {[%clk 0:02:23]} 25. Bxf4 {[%clk
0:02:56]} 25... Qxf4 {[%clk 0:02:22]} 26. Qxf4 {[%clk 0:02:55]} 26... Bxf4
{[%clk 0:02:22]} 27. Re1 {[%clk 0:02:52]} 27... Nd6 {[%clk 0:02:20]} 28. Rxe8+
{[%clk 0:02:42]} 28... Nxe8 {[%clk 0:02:19]} 29. Kf2 {[%clk 0:02:42]} 29... g6
{[%clk 0:02:18]} 30. Kf3 {[%clk 0:02:41]} 30... Be5 {[%clk 0:02:17]} 31. Nb3
{[%clk 0:02:40]} 31... b6 {[%clk 0:02:12]} 32. Be4 {[%clk 0:02:38]} 32... c5
{[%clk 0:02:08]} 33. a4 {[%clk 0:02:35]} 33... Kf8 {[%clk 0:02:06]} 34. Nd2
{[%clk 0:02:34]} 34... Nd6 {[%clk 0:02:02]} 35. Bd3 {[%clk 0:02:33]} 35... f5
{[%clk 0:02:00]} 36. g4 {[%clk 0:02:32]} 36... Ke7 {[%clk 0:01:59]} 37. Nf1
{[%clk 0:02:30]} 37... fxg4+ {[%clk 0:01:47]} 38. Kxg4 {[%clk 0:02:22]} 38...
Bg7 {[%clk 0:01:45]} 39. Ne3 {[%clk 0:02:21]} 39... Ke6 {[%clk 0:01:44]} 40.
Bc4+ {[%clk 0:02:11]} 40... Ke5 {[%clk 0:01:41]} 41. Bg8 {[%clk 0:02:09]} 41...
Ke4 {[%clk 0:01:30]} 42. Nd5 {[%clk 0:01:56]} 42... Nc4 {[%clk 0:01:13]} 43. Kg5
{[%clk 0:01:42]} 43... Nxb2 {[%clk 0:01:11]} 44. Nxb6 {[%clk 0:01:41]} 44...
Bxc3 {[%clk 0:01:09]} 45. Bxh7 {[%clk 0:01:39]} 45... Bd2+ {[%clk 0:01:04]} 46.
Kxg6 {[%clk 0:01:34]} 46... c4 {[%clk 0:01:04]} 47. Kf6+ {[%clk 0:01:33]} 47...
Kd4 {[%clk 0:01:02]} 48. Bc2 {[%clk 0:01:16]} 48... Kc3 {[%clk 0:00:59]} 49. Bd1
{[%clk 0:01:16]} 49... Nxd1 {[%clk 0:00:56]} 50. h4 {[%clk 0:01:14]} 50... Kb3
{[%clk 0:00:54]} 51. h5 {[%clk 0:01:10]} 51... c3 {[%clk 0:00:54]} 0-1

[Variant "Standard"]
[Site "Europe Echecs"]

[Event "Sunway Sitges Chess Festival"]
[Date "2024.12.22"]
[White "Tin, Jingyao"]
[Black "Maurizzi, Marc`Andria"]
[WhiteElo "2480"]
[BlackElo "2477"]
[Round "14.1"]
[Result "1-0"]
[TimeControl "40/5400+30:1800+30"]

1. d4 {[%clk 0:05:05]} 1... Nf6 {[%clk 0:05:04]} 2. c4 {[%clk 0:05:07]} 2... e6
{[%clk 0:05:06]} 3. Nc3 {[%clk 0:05:09]} 3... d5 {[%clk 0:05:09]} 4. cxd5 {[%clk
0:05:09]} 4... exd5 {[%clk 0:05:11]} 5. Bg5 {[%clk 0:05:11]} 5... c6 {[%clk
0:05:12]} 6. e3 {[%clk 0:05:13]} 6... Be7 {[%clk 0:05:02]} 7. Bd3 {[%clk
0:05:14]} 7... h6 {[%clk 0:05:03]} 8. Bh4 {[%clk 0:05:08]} 8... O-O {[%clk
0:05:04]} 9. Bg3 {[%clk 0:04:56]} 9... Re8 {[%clk 0:05:00]} 10. h3 {[%clk
0:04:55]} 10... Bd6 {[%clk 0:04:49]} 11. Bxd6 {[%clk 0:04:30]} 11... Qxd6 {[%clk
0:04:51]} 12. Qc2 {[%clk 0:04:29]} 12... Be6 {[%clk 0:04:24]} 13. Nf3 {[%clk
0:04:19]} 13... Nbd7 {[%clk 0:04:26]} 14. O-O {[%clk 0:04:14]} 14... Rac8 {[%clk
0:04:28]} 15. a3 {[%clk 0:04:15]} 15... c5 {[%clk 0:04:25]} 16. dxc5 {[%clk
0:04:12]} 16... Nxc5 {[%clk 0:04:27]} 17. Rfd1 {[%clk 0:04:03]} 17... a6 {[%clk
0:04:22]} 18. Nd4 {[%clk 0:03:50]} 18... Bd7 {[%clk 0:04:22]} 19. Qe2 {[%clk
0:03:45]} 19... Qe5 {[%clk 0:04:03]} 20. Bc2 {[%clk 0:03:42]} 20... Nce4 {[%clk
0:04:02]} 21. Nxe4 {[%clk 0:03:38]} 21... dxe4 {[%clk 0:04:02]} 22. Bb3 {[%clk
0:03:28]} 22... Qg5 {[%clk 0:04:03]} 23. Kh1 {[%clk 0:03:21]} 23... Qh4 {[%clk
0:04:05]} 24. Qf1 {[%clk 0:03:13]} 24... Rc5 {[%clk 0:02:51]} 25. Ne2 {[%clk
0:03:04]} 25... Bb5 {[%clk 0:02:38]} 26. Qe1 {[%clk 0:03:05]} 26... Bd7 {[%clk
0:02:30]} 27. Nf4 {[%clk 0:02:51]} 27... Bc6 {[%clk 0:02:02]} 28. Rd6 {[%clk
0:02:35]} 28... Rb5 {[%clk 0:01:52]} 29. g3 {[%clk 0:01:52]} 29... Qg5 {[%clk
0:01:53]} 30. Qc3 {[%clk 0:01:54]} 30... Qc5 {[%clk 0:01:11]} 31. Qxc5 {[%clk
0:01:28]} 31... Rxc5 {[%clk 0:01:13]} 32. Rd2 {[%clk 0:01:12]} 32... Bd7 {[%clk
0:00:45]} 33. Kg2 {[%clk 0:01:07]} 33... Bc6 {[%clk 0:00:36]} 34. Rad1 {[%clk
0:01:07]} 34... Kf8 {[%clk 0:00:39]} 35. Ba2 {[%clk 0:00:58]} 35... Ke7 {[%clk
0:00:38]} 36. Ne2 {[%clk 0:00:43]} 36... Rc8 {[%clk 0:00:38]} 37. Nc3 {[%clk
0:00:44]} 37... h5 {[%clk 0:00:34]} 38. Rd4 {[%clk 0:00:45]} 38... Re5 {[%clk
0:00:36]} 39. R1d2 {[%clk 0:00:42]} 39... Rc5 {[%clk 0:00:30]} 40. Kf1 {[%clk
0:00:38]} 40... Bd7 {[%clk 0:00:30]} 41. Kg2 {[%clk 0:00:39]} 41... Bc6 {[%clk
0:00:33]} 42. Rd1 {[%clk 0:00:39]} 42... Re5 {[%clk 0:00:34]} 43. Bc4 {[%clk
0:00:34]} 43... Rg5 {[%clk 0:00:30]} 44. Be2 {[%clk 0:00:29]} 44... Re5 {[%clk
0:00:31]} 45. Na2 {[%clk 0:00:28]} 45... Rd5 {[%clk 0:00:27]} 46. Nb4 {[%clk
0:00:26]} 46... Rxd4 {[%clk 0:00:29]} 47. Rxd4 {[%clk 0:00:28]} 47... Bd7 {[%clk
0:00:31]} 48. Bc4 {[%clk 0:00:24]} 48... Be6 {[%clk 0:00:30]} 49. Bxe6 {[%clk
0:00:25]} 49... Kxe6 {[%clk 0:00:32]} 50. Rd2 {[%clk 0:00:25]} 50... a5 {[%clk
0:00:31]} 51. Nc2 {[%clk 0:00:28]} 51... Ke5 {[%clk 0:00:30]} 52. Nd4 {[%clk
0:00:28]} 52... Nd5 {[%clk 0:00:30]} 53. g4 {[%clk 0:00:27]} 53... hxg4 {[%clk
0:00:28]} 54. hxg4 {[%clk 0:00:30]} 54... g6 {[%clk 0:00:13]} 55. f4+ {[%clk
0:00:27]} 55... exf3+ {[%clk 0:00:09]} 56. Nxf3+ {[%clk 0:00:29]} 56... Ke6
{[%clk 0:00:10]} 57. Ng5+ {[%clk 0:00:31]} 57... Ke5 {[%clk 0:00:07]} 58. Nxf7+
{[%clk 0:00:33]} 58... Kf6 {[%clk 0:00:07]} 59. Rxd5 {[%clk 0:00:17]} 59... Kxf7
{[%clk 0:00:03]} 60. Rd7+ {[%clk 0:00:18]} 60... Ke6 {[%clk 0:00:09]} 61. Rxb7
{[%clk 0:00:20]} 61... Ke5 {[%clk 0:00:07]} 62. Kf3 {[%clk 0:00:20]} 62... Rc2
{[%clk 0:00:07]} 63. Rb5+ {[%clk 0:00:21]} 63... Kf6 {[%clk 0:00:10]} 64. a4
{[%clk 0:00:19]} 64... Ke6 {[%clk 0:00:09]} 65. b3 {[%clk 0:00:20]} 65... Rb2
{[%clk 0:00:10]} 66. Ke4 {[%clk 0:00:20]} 66... Rg2 {[%clk 0:00:10]} 67. Kf4
{[%clk 0:00:22]} 67... Rb2 {[%clk 0:00:12]} 68. Kg5 {[%clk 0:00:22]} 1-0

[Variant "Standard"]
[Site "Europe Echecs"]

[Event "Sunway Sitges Chess Festival"]
[Date "2024.12.22"]
[White "Li, Di"]
[Black "Gholami Orimi, Mahdi"]
[WhiteElo "2440"]
[BlackElo "2402"]
[Round "14.2"]
[Result "1-0"]
[TimeControl "40/5400+30:1800+30"]

1. Nf3 {[%clk 0:05:05]} 1... d5 {[%clk 0:05:05]} 2. d4 {[%clk 0:05:07]} 2... Nf6
{[%clk 0:05:07]} 3. c4 {[%clk 0:05:09]} 3... e6 {[%clk 0:05:09]} 4. g3 {[%clk
0:05:11]} 4... Bb4+ {[%clk 0:05:08]} 5. Bd2 {[%clk 0:05:13]} 5... Bd6 {[%clk
0:05:10]} 6. Bg2 {[%clk 0:05:14]} 6... O-O {[%clk 0:05:11]} 7. O-O {[%clk
0:05:15]} 7... Nc6 {[%clk 0:05:13]} 8. Bc3 {[%clk 0:05:10]} 8... Ne4 {[%clk
0:05:00]} 9. Qc2 {[%clk 0:05:00]} 9... f5 {[%clk 0:04:54]} 10. Nbd2 {[%clk
0:04:44]} 10... a5 {[%clk 0:04:28]} 11. Rfd1 {[%clk 0:04:30]} 11... Qf6 {[%clk
0:03:47]} 12. e3 {[%clk 0:04:04]} 12... b6 {[%clk 0:03:41]} 13. Rac1 {[%clk
0:03:10]} 13... Bb7 {[%clk 0:03:31]} 14. Ne1 {[%clk 0:02:27]} 14... a4 {[%clk
0:01:52]} 15. Nd3 {[%clk 0:02:15]} 15... a3 {[%clk 0:01:30]} 16. b4 {[%clk
0:02:17]} 16... dxc4 {[%clk 0:00:42]} 17. Nxc4 {[%clk 0:02:06]} 17... Ne7 {[%clk
0:00:43]} 18. Ba1 {[%clk 0:02:00]} 18... Nd5 {[%clk 0:00:35]} 19. Nce5 {[%clk
0:02:02]} 19... Rfd8 {[%clk 0:00:12]} 20. Nc6 {[%clk 0:02:04]} 20... Rdc8 {[%clk
0:00:05]} 21. b5 {[%clk 0:02:06]} 21... Re8 {[%clk 0:00:05]} 22. Nde5 {[%clk
0:02:09]} 22... h5 {[%clk 0:00:06]} 23. h4 {[%clk 0:02:07]} 23... g5 {[%clk
0:00:07]} 24. Bxe4 {[%clk 0:02:07]} 24... fxe4 {[%clk 0:00:09]} 25. hxg5 {[%clk
0:02:08]} 25... Qxg5 {[%clk 0:00:06]} 26. Qxe4 {[%clk 0:02:10]} 26... Bxc6
{[%clk 0:00:05]} 27. Rxc6 {[%clk 0:02:03]} 27... Re7 {[%clk 0:00:05]} 28. Nc4
{[%clk 0:01:43]} 28... Bxg3 {[%clk 0:00:05]} 29. fxg3 {[%clk 0:01:45]} 29... Rg7
{[%clk 0:00:06]} 30. Qxe6+ {[%clk 0:01:38]} 30... Kh7 {[%clk 0:00:08]} 31. Qe4+
{[%clk 0:01:28]} 31... Kg8 {[%clk 0:00:08]} 32. Qe5 {[%clk 0:01:20]} 32... Qxe5
{[%clk 0:00:05]} 33. dxe5 {[%clk 0:01:18]} 1-0

[Variant "Standard"]
[Site "Europe Echecs"]

[Event "Sunway Sitges Chess Festival"]
[Date "2024.12.22"]
[White "Ilamparthi A R"]
[Black "Moussard, Jules"]
[WhiteElo "2391"]
[BlackElo "2649"]
[Round "14.3"]
[Result "1-0"]
[TimeControl "40/5400+30:1800+30"]

1. e4 {[%clk 0:05:05]} 1... a6 {[%clk 0:05:06]} 2. Nf3 {[%clk 0:05:07]} 2... e6
{[%clk 0:05:08]} 3. d4 {[%clk 0:05:08]} 3... d5 {[%clk 0:05:10]} 4. e5 {[%clk
0:05:10]} 4... c5 {[%clk 0:05:11]} 5. c3 {[%clk 0:05:12]} 5... Bd7 {[%clk
0:05:14]} 6. Be2 {[%clk 0:05:11]} 6... cxd4 {[%clk 0:05:14]} 7. cxd4 {[%clk
0:05:10]} 7... Bb5 {[%clk 0:05:16]} 8. Nc3 {[%clk 0:05:09]} 8... Bxe2 {[%clk
0:05:16]} 9. Qxe2 {[%clk 0:05:11]} 9... Nc6 {[%clk 0:05:18]} 10. O-O {[%clk
0:05:11]} 10... Bb4 {[%clk 0:05:19]} 11. Nd1 {[%clk 0:03:49]} 11... Nge7 {[%clk
0:05:20]} 12. Ne3 {[%clk 0:03:51]} 12... Ba5 {[%clk 0:05:20]} 13. Rd1 {[%clk
0:03:48]} 13... Rc8 {[%clk 0:05:21]} 14. h4 {[%clk 0:03:44]} 14... Bb6 {[%clk
0:05:20]} 15. b3 {[%clk 0:03:30]} 15... Ba5 {[%clk 0:05:16]} 16. Bb2 {[%clk
0:03:28]} 16... Qd7 {[%clk 0:05:15]} 17. g3 {[%clk 0:03:09]} 17... h6 {[%clk
0:05:13]} 18. Kg2 {[%clk 0:03:11]} 18... Kd8 {[%clk 0:05:15]} 19. Ne1 {[%clk
0:02:51]} 19... Bxe1 {[%clk 0:05:13]} 20. Qxe1 {[%clk 0:02:53]} 20... Kc7 {[%clk
0:05:13]} 21. Ba3 {[%clk 0:02:56]} 21... Kb8 {[%clk 0:05:16]} 22. Bd6+ {[%clk
0:02:56]} 22... Ka8 {[%clk 0:05:18]} 23. b4 {[%clk 0:02:58]} 23... Na7 {[%clk
0:03:58]} 24. a4 {[%clk 0:02:59]} 24... b6 {[%clk 0:04:00]} 25. Qe2 {[%clk
0:02:52]} 25... Kb7 {[%clk 0:04:00]} 26. Qg4 {[%clk 0:02:50]} 26... g6 {[%clk
0:03:37]} 27. a5 {[%clk 0:02:10]} 27... Nb5 {[%clk 0:03:20]} 28. axb6 {[%clk
0:02:11]} 28... Nxd6 {[%clk 0:03:21]} 29. exd6 {[%clk 0:02:13]} 29... Qxd6
{[%clk 0:03:23]} 30. b5 {[%clk 0:02:15]} 30... a5 {[%clk 0:03:07]} 31. Rxa5
{[%clk 0:02:15]} 31... Ra8 {[%clk 0:03:09]} 32. Ra6 {[%clk 0:02:17]} 32... Rxa6
{[%clk 0:03:08]} 33. bxa6+ {[%clk 0:02:19]} 33... Kxb6 {[%clk 0:03:10]} 34. Rb1+
{[%clk 0:02:17]} 34... Ka7 {[%clk 0:03:12]} 35. Qf3 {[%clk 0:02:08]} 35... Rb8
{[%clk 0:02:51]} 36. Rxb8 {[%clk 0:02:07]} 36... Kxb8 {[%clk 0:02:54]} 37. Qxf7
{[%clk 0:02:08]} 37... Ka7 {[%clk 0:02:56]} 38. Ng4 {[%clk 0:02:05]} 38... h5
{[%clk 0:02:54]} 39. Ne5 {[%clk 0:02:04]} 39... Kxa6 {[%clk 0:02:56]} 40. Nxg6
{[%clk 0:01:50]} 40... Nf5 {[%clk 0:02:57]} 41. Qf6 {[%clk 0:01:45]} 41... Qb6
{[%clk 0:02:59]} 42. Nf4 {[%clk 0:01:43]} 42... Nxd4 {[%clk 0:03:01]} 43. Nxh5
{[%clk 0:01:44]} 43... Kb5 {[%clk 0:02:57]} 44. Nf4 {[%clk 0:01:44]} 44... Kc4
{[%clk 0:02:58]} 45. Qe5 {[%clk 0:01:34]} 45... Qb7 {[%clk 0:02:12]} 46. h5
{[%clk 0:01:16]} 46... Qh7 {[%clk 0:02:11]} 47. g4 {[%clk 0:01:12]} 47... Qg8
{[%clk 0:02:01]} 48. g5 {[%clk 0:01:04]} 48... Nc6 {[%clk 0:02:03]} 49. Qe2+
{[%clk 0:01:00]} 49... Kc5 {[%clk 0:02:05]} 50. Qg4 {[%clk 0:00:54]} 50... Ne5
{[%clk 0:02:05]} 51. Qg3 {[%clk 0:00:56]} 51... Nf7 {[%clk 0:02:03]} 52. Nxe6+
{[%clk 0:00:56]} 52... Kc4 {[%clk 0:02:06]} 53. g6 {[%clk 0:00:56]} 53... Nh6
{[%clk 0:02:07]} 54. Qf4+ {[%clk 0:00:55]} 54... Kc3 {[%clk 0:02:08]} 55. Qxh6
{[%clk 0:00:53]} 55... Qxe6 {[%clk 0:02:10]} 56. Qe3+ {[%clk 0:00:55]} 56...
Qxe3 {[%clk 0:02:11]} 57. fxe3 {[%clk 0:00:57]} 1-0

[Variant "Standard"]
[Site "Europe Echecs"]

[Event "Sunway Sitges Chess Festival"]
[Date "2024.12.22"]
[White "Maurizzi, Marc`Andria"]
[Black "Tin, Jingyao"]
[WhiteElo "2477"]
[BlackElo "2480"]
[Round "15.1"]
[Result "0-1"]
[TimeControl "40/5400+30:1800+30"]

1. e4 {[%clk 0:05:05]} 1... e5 {[%clk 0:05:05]} 2. Nf3 {[%clk 0:05:07]} 2... Nc6
{[%clk 0:05:07]} 3. Bc4 {[%clk 0:05:05]} 3... Nf6 {[%clk 0:05:09]} 4. d3 {[%clk
0:05:07]} 4... Bc5 {[%clk 0:05:11]} 5. O-O {[%clk 0:05:04]} 5... d6 {[%clk
0:05:14]} 6. c3 {[%clk 0:05:04]} 6... a6 {[%clk 0:05:15]} 7. Nbd2 {[%clk
0:05:01]} 7... Ba7 {[%clk 0:05:12]} 8. Re1 {[%clk 0:05:01]} 8... Na5 {[%clk
0:05:09]} 9. Bd5 {[%clk 0:05:01]} 9... c6 {[%clk 0:04:36]} 10. Bxf7+ {[%clk
0:05:03]} 10... Kxf7 {[%clk 0:04:39]} 11. b4 {[%clk 0:05:05]} 11... Re8 {[%clk
0:04:32]} 12. bxa5 {[%clk 0:04:55]} 12... Qxa5 {[%clk 0:04:30]} 13. Nc4 {[%clk
0:04:32]} 13... Qc7 {[%clk 0:04:23]} 14. Qb3 {[%clk 0:04:20]} 14... Kf8 {[%clk
0:04:14]} 15. Ba3 {[%clk 0:04:02]} 15... c5 {[%clk 0:04:17]} 16. d4 {[%clk
0:03:04]} 16... Be6 {[%clk 0:03:59]} 17. d5 {[%clk 0:02:57]} 17... Bd7 {[%clk
0:03:46]} 18. Ncd2 {[%clk 0:02:52]} 18... b5 {[%clk 0:03:45]} 19. c4 {[%clk
0:02:52]} 19... Bb6 {[%clk 0:03:34]} 20. Bb2 {[%clk 0:02:43]} 20... Ba5 {[%clk
0:03:34]} 21. Bc3 {[%clk 0:02:41]} 21... Kg8 {[%clk 0:03:28]} 22. h3 {[%clk
0:02:28]} 22... Rf8 {[%clk 0:03:24]} 23. Rec1 {[%clk 0:02:17]} 23... Bxc3 {[%clk
0:03:23]} 24. Qxc3 {[%clk 0:02:19]} 24... b4 {[%clk 0:03:15]} 25. Qe3 {[%clk
0:02:21]} 25... a5 {[%clk 0:03:17]} 26. Ne1 {[%clk 0:02:19]} 26... a4 {[%clk
0:03:15]} 27. Nd3 {[%clk 0:02:22]} 27... Nh5 {[%clk 0:03:11]} 28. Nf3 {[%clk
0:02:16]} 28... Nf4 {[%clk 0:02:59]} 29. Nxf4 {[%clk 0:02:18]} 29... Rxf4 {[%clk
0:03:00]} 30. Ne1 {[%clk 0:02:20]} 30... Raf8 {[%clk 0:02:48]} 31. Nd3 {[%clk
0:02:22]} 31... R4f6 {[%clk 0:02:50]} 32. Kh2 {[%clk 0:02:12]} 32... Be8 {[%clk
0:02:46]} 33. f3 {[%clk 0:02:09]} 33... h6 {[%clk 0:02:08]} 34. Rc2 {[%clk
0:02:11]} 34... Qe7 {[%clk 0:02:04]} 35. Rf2 {[%clk 0:02:10]} 35... Bd7 {[%clk
0:01:50]} 36. Raf1 {[%clk 0:02:10]} 36... Bc8 {[%clk 0:01:52]} 37. Rc2 {[%clk
0:02:02]} 37... Kh8 {[%clk 0:01:41]} 38. Rcc1 {[%clk 0:01:56]} 38... a3 {[%clk
0:01:38]} 39. Rc2 {[%clk 0:01:48]} 39... R6f7 {[%clk 0:01:31]} 40. Nc1 {[%clk
0:01:47]} 40... Rf6 {[%clk 0:01:26]} 41. Ne2 {[%clk 0:01:48]} 41... R6f7 {[%clk
0:01:13]} 42. Nc1 {[%clk 0:01:41]} 42... Rf6 {[%clk 0:01:29]} 43. Nd3 {[%clk
0:01:43]} 43... R6f7 {[%clk 0:01:30]} 44. Kg1 {[%clk 0:01:40]} 44... Qg5 {[%clk
0:01:04]} 45. Qxg5 {[%clk 0:01:28]} 45... hxg5 {[%clk 0:01:07]} 46. Kf2 {[%clk
0:01:30]} 46... g6 {[%clk 0:00:59]} 47. Ke3 {[%clk 0:01:28]} 47... Kg7 {[%clk
0:01:01]} 48. Rb1 {[%clk 0:01:26]} 48... Bxh3 {[%clk 0:00:37]} 49. gxh3 {[%clk
0:01:12]} 49... Rxf3+ {[%clk 0:00:39]} 50. Kd2 {[%clk 0:01:14]} 50... Rxh3
{[%clk 0:00:41]} 51. Re1 {[%clk 0:01:15]} 51... Rff3 {[%clk 0:00:38]} 52. Nc1
{[%clk 0:01:16]} 52... g4 {[%clk 0:00:36]} 53. Kd1 {[%clk 0:01:18]} 53... Kf6
{[%clk 0:00:35]} 54. Rg2 {[%clk 0:00:57]} 54... Kg5 {[%clk 0:00:35]} 55. Reg1
{[%clk 0:00:59]} 55... Rf4 {[%clk 0:00:34]} 56. Re2 {[%clk 0:00:37]} 56... Rc3
{[%clk 0:00:29]} 57. Kd2 {[%clk 0:00:26]} 57... Rxc4 {[%clk 0:00:30]} 58. Nd3
{[%clk 0:00:21]} 58... Rfxe4 {[%clk 0:00:25]} 59. Rxe4 {[%clk 0:00:22]} 59...
Rxe4 {[%clk 0:00:27]} 60. Nf2 {[%clk 0:00:24]} 60... Rd4+ {[%clk 0:00:27]} 61.
Ke3 {[%clk 0:00:26]} 61... Kf5 {[%clk 0:00:24]} 62. Rf1 {[%clk 0:00:21]} 62...
Rf4 {[%clk 0:00:16]} 63. Rg1 {[%clk 0:00:22]} 63... Rf3+ {[%clk 0:00:12]} 64.
Ke2 {[%clk 0:00:25]} 64... Rf4 {[%clk 0:00:14]} 65. Nd1 {[%clk 0:00:20]} 65...
Re4+ {[%clk 0:00:10]} 66. Ne3+ {[%clk 0:00:20]} 66... Kg5 {[%clk 0:00:11]} 67.
Kd3 {[%clk 0:00:19]} 67... Rd4+ {[%clk 0:00:13]} 68. Ke2 {[%clk 0:00:22]} 68...
Re4 {[%clk 0:00:13]} 69. Kf2 {[%clk 0:00:08]} 69... Rf4+ {[%clk 0:00:13]} 70.
Kg2 {[%clk 0:00:02]} 70... Rd4 {[%clk 0:00:11]} 71. Rc1 {[%clk 0:00:06]} 71...
Rd2+ {[%clk 0:00:11]} 72. Kg3 {[%clk 0:00:08]} 72... Rd3 {[%clk 0:00:10]} 73.
Kf2 {[%clk 0:00:06]} 73... Kf4 {[%clk 0:00:05]} 74. Nc4 {[%clk 0:00:05]} 74...
Rxd5 {[%clk 0:00:06]} 75. Ke2 {[%clk 0:00:07]} 75... Rd4 {[%clk 0:00:06]} 76.
Ne3 {[%clk 0:00:07]} 76... Kg5 {[%clk 0:00:06]} 77. Nc2 {[%clk 0:00:06]} 77...
Rc4 {[%clk 0:00:07]} 78. Kd2 {[%clk 0:00:07]} 78... Rf4 {[%clk 0:00:08]} 79. Kd3
{[%clk 0:00:04]} 79... d5 {[%clk 0:00:07]} 80. Ne3 {[%clk 0:00:07]} 80... c4+
{[%clk 0:00:08]} 81. Ke2 {[%clk 0:00:09]} 81... Rd4 {[%clk 0:00:10]} 82. Nc2
{[%clk 0:00:09]} 82... Re4+ {[%clk 0:00:11]} 83. Kd2 {[%clk 0:00:11]} 83... b3
{[%clk 0:00:07]} 84. axb3 {[%clk 0:00:13]} 84... cxb3 {[%clk 0:00:09]} 85. Nxa3
{[%clk 0:00:16]} 85... g3 {[%clk 0:00:10]} 86. Nb5 {[%clk 0:00:18]} 86... Kg4
{[%clk 0:00:08]} 87. Nc3 {[%clk 0:00:20]} 87... Rc4 {[%clk 0:00:08]} 88. Re1
{[%clk 0:00:21]} 88... e4 {[%clk 0:00:08]} 89. Nd1 {[%clk 0:00:18]} 89... Rc2+
{[%clk 0:00:08]} 90. Ke3 {[%clk 0:00:20]} 90... b2 {[%clk 0:00:09]} 91. Kd4
{[%clk 0:00:23]} 91... Rc1 {[%clk 0:00:06]} 92. Rh1 {[%clk 0:00:00]} 0-1

[Variant "Standard"]
[Site "Europe Echecs"]

[Event "Sunway Sitges Chess Festival"]
[Date "2024.12.22"]
[White "Gholami Orimi, Mahdi"]
[Black "Li, Di"]
[WhiteElo "2402"]
[BlackElo "2440"]
[Round "15.2"]
[Result "0-1"]
[TimeControl "40/5400+30:1800+30"]

1. d4 {[%clk 0:05:05]} 1... d5 {[%clk 0:05:06]} 2. c4 {[%clk 0:05:07]} 2... c6
{[%clk 0:05:08]} 3. Nf3 {[%clk 0:05:07]} 3... a6 {[%clk 0:05:10]} 4. c5 {[%clk
0:05:02]} 4... Bf5 {[%clk 0:05:12]} 5. Nc3 {[%clk 0:04:59]} 5... e6 {[%clk
0:05:14]} 6. g3 {[%clk 0:04:59]} 6... Nd7 {[%clk 0:05:07]} 7. Bg2 {[%clk
0:04:58]} 7... h6 {[%clk 0:05:06]} 8. O-O {[%clk 0:04:50]} 8... Ngf6 {[%clk
0:05:08]} 9. Bf4 {[%clk 0:04:49]} 9... Be7 {[%clk 0:05:10]} 10. b4 {[%clk
0:04:22]} 10... Ne4 {[%clk 0:05:12]} 11. Qb3 {[%clk 0:04:13]} 11... O-O {[%clk
0:05:08]} 12. a4 {[%clk 0:04:01]} 12... Bf6 {[%clk 0:04:30]} 13. Rfd1 {[%clk
0:03:06]} 13... Re8 {[%clk 0:04:32]} 14. Ne5 {[%clk 0:03:01]} 14... Nxc3 {[%clk
0:03:29]} 15. Qxc3 {[%clk 0:03:03]} 15... g5 {[%clk 0:03:14]} 16. Be3 {[%clk
0:02:44]} 16... Bg7 {[%clk 0:03:03]} 17. b5 {[%clk 0:02:25]} 17... axb5 {[%clk
0:03:04]} 18. axb5 {[%clk 0:02:27]} 18... Rxa1 {[%clk 0:02:50]} 19. Rxa1 {[%clk
0:02:29]} 19... Nxe5 {[%clk 0:02:52]} 20. dxe5 {[%clk 0:02:31]} 20... cxb5
{[%clk 0:02:55]} 21. Bd4 {[%clk 0:02:33]} 21... Qc7 {[%clk 0:02:45]} 22. Qb2
{[%clk 0:02:34]} 22... Rc8 {[%clk 0:02:34]} 23. Bf1 {[%clk 0:02:31]} 23... Bf8
{[%clk 0:02:25]} 24. Rc1 {[%clk 0:01:39]} 24... b6 {[%clk 0:02:28]} 25. c6
{[%clk 0:01:36]} 25... Bc5 {[%clk 0:02:30]} 26. Bxc5 {[%clk 0:01:33]} 26... bxc5
{[%clk 0:02:32]} 27. Rxc5 {[%clk 0:01:34]} 27... Qb6 {[%clk 0:02:34]} 28. Qb4
{[%clk 0:01:13]} 28... Rxc6 {[%clk 0:02:29]} 29. Rxb5 {[%clk 0:01:15]} 29... Qd8
{[%clk 0:02:09]} 30. Rb7 {[%clk 0:00:38]} 30... Kg7 {[%clk 0:01:37]} 31. Qa4
{[%clk 0:00:23]} 31... Rc1 {[%clk 0:01:28]} 32. Qa7 {[%clk 0:00:05]} 32... Qe8
{[%clk 0:01:07]} 33. Kg2 {[%clk 0:00:06]} 33... g4 {[%clk 0:00:59]} 34. Qe3
{[%clk 0:00:05]} 34... Qc6 {[%clk 0:00:58]} 35. Rb6 {[%clk 0:00:05]} 35... Qc4
{[%clk 0:00:48]} 36. Rb7 {[%clk 0:00:04]} 36... d4 {[%clk 0:00:43]} 37. Qf4
{[%clk 0:00:06]} 37... Qc6+ {[%clk 0:00:43]} 0-1

[Variant "Standard"]
[Site "Europe Echecs"]